bitfinex/quotes_ETHUSD_20251009
["timestamp","ask_amount","ask_price","bid_price","bid_amount"]
[1760026079885,0.1152,4314.7,4314.2,5.19182684]
[1760026080115,0.1152,4314.7,4314.3,2.578]
[1760026080622,0.1152,4314.7,4314.1,0.006]
[1760026080937,0.1152,4314.5,4314.1,0.006]
[1760026081119,0.1152,4314.5,4314.1,4.108]
[1760026081510,0.1152,4314.5,4314.1,4.53042]
[1760026082248,0.002,4315.1,4314.4,2.31777915]
[1760026082546,0.1152,4314.7,4314.5,0.02317765]
[1760026082706,0.1152,4314.7,4314.3,2.34105184]
[1760026083224,0.002,4315.1,4314.5,0.1152]
[1760026083424,0.002,4315.1,4315.0,2.3174971]
[1760026083732,0.002,4315.1,4315.0,7.434]
[1760026084402,2.31944339,4315.1,4315.0,7.434]
[1760026084638,0.002,4315.1,4315.0,7.434]
[1760026084835,0.002,4315.1,4314.5,2.43295649]
[1760026085012,0.002,4315.1,4314.6,4.912]
[1760026085215,0.002,4315.1,4314.6,8.05649565]
[1760026085416,0.002,4315.1,4314.7,0.4639]
[1760026085614,0.002,4315.1,4314.7,2.78154377]
[1760026085839,0.002,4315.1,4314.7,2.78155474]
[1760026086144,0.002,4315.1,4315.0,2.3174971]
[1760026086433,0.002,4315.1,4315.0,2.83891577]
[1760026086638,0.002,4315.1,4315.0,0.52141867]
[1760026086933,0.002,4315.1,4315.0,9.50841867]
[1760026087241,0.002,4315.1,4315.0,8.987]
[1760026088437,0.002,4315.1,4315.0,11.7683971]
[1760026088644,0.002,4315.1,4315.0,11.8835971]
[1760026089422,0.002,4315.1,4315.0,2.8965971]
[1760026089625,0.002,4315.1,4315.0,0.1152]
[1760026089839,0.002,4315.1,4314.1,1.11602]
[1760026089840,2.31759543,4314.9,4314.8,2.41]
[1760026090038,2.42686433,4315.1,4314.8,2.41]
[1760026090039,2.43271399,4315.0,4314.8,4.597]
[1760026090335,2.4250015,4314.9,4314.3,0.1152]
[1760026090555,2.31769515,4314.7,4314.3,0.1152]
[1760026090860,0.1152,4314.6,4314.4,4.717]
[1760026091633,0.002,4315.1,4314.6,2.31771195]
[1760026091634,0.1152,4314.9,4314.6,2.31771195]
[1760026091836,0.1152,4314.9,4314.7,0.02317658]
[1760026092249,0.1152,4314.9,4314.4,7.50710301]
[1760026092567,0.1152,4314.9,4314.5,2.34093108]
[1760026092762,0.1152,4314.9,4314.5,1.07674717]
[1760026092934,0.1152,4314.9,4314.5,1.54064717]
[1760026093135,0.1152,4314.9,4314.5,1.05356952]
[1760026093336,0.1152,4314.9,4314.4,4.717]
[1760026093534,0.1152,4314.9,4314.4,7.03480889]
[1760026093867,0.1152,4314.9,4314.4,4.717]
[1760026094166,0.1152,4314.9,4314.6,2.31770778]
[1760026094364,0.1152,4314.9,4314.7,0.02317658]
[1760026094941,0.002,4315.1,4314.9,2.3175081]
[1760026095141,0.002,4315.1,4315.0,8.8934971]
[1760026095645,0.002,4315.1,4315.0,9.3573971]
[1760026096161,0.002,4315.1,4315.0,9.4725971]
[1760026098468,0.002,4315.1,4315.0,11.3925971]
[1760026098670,0.002,4315.1,4315.0,14.39217685]
[1760026099961,0.002,4315.6,4315.5,2.31722859]
[1760026099962,1e-08,4315.6,4315.5,2.31722859]
[1760026100274,1e-08,4315.6,4315.5,13.22222859]
[1760026100483,1e-08,4315.6,4315.5,13.80132859]
[1760026100851,1e-08,4315.6,4315.5,14.43492859]
[1760026101147,1e-08,4315.6,4315.5,16.11015169]
[1760026103400,1e-08,4315.6,4315.5,7.12515169]
[1760026103693,1e-08,4315.6,4315.5,24.07192859]
[1760026103906,1e-08,4315.6,4315.5,24.07092859]
[1760026107992,1e-08,4315.6,4315.5,23.97092859]
[1760026108559,1e-08,4315.6,4315.5,5.34992859]
[1760026108759,1e-08,4315.6,4315.5,33.60492859]
[1760026108960,1e-08,4315.6,4315.5,35.85669904]
[1760026109168,1e-08,4315.6,4315.5,7.60169904]
[1760026109368,1e-08,4315.6,4315.5,33.60292859]
[1760026109673,1e-08,4315.6,4315.5,23.33332859]
[1760026110392,1e-08,4315.6,4315.5,23.33432859]
[1760026111295,1e-08,4315.6,4315.5,2.79732859]
[1760026111457,1e-08,4315.6,4315.5,0.1162]
[1760026111663,1e-08,4315.6,4315.5,0.001]
[1760026111664,0.09900001,4315.6,4315.5,0.001]
[1760026111863,2.41617491,4315.6,4315.5,0.001]
[1760026112106,0.11520001,4315.6,4315.5,2.426]
[1760026112529,2.316736,4316.5,4315.5,2.426]
[1760026112683,0.1152,4315.8,4315.5,2.426]
[1760026113023,0.1152,4315.8,4315.6,0.02317174]
[1760026113228,0.1152,4315.8,4315.5,2.426]
[1760026114022,0.1152,4315.8,4315.6,0.02317174]
[1760026114320,2.31682392,4316.3,4315.7,2.77397391]
[1760026114321,0.1152,4316.3,4315.7,2.77397391]
[1760026114522,0.1152,4316.3,4315.7,2.31707391]
[1760026115886,0.1152,4316.3,4315.6,0.1152]
[1760026116101,0.2197,4316.7,4315.6,0.1152]
[1760026116102,0.1152,4316.7,4315.9,0.1152]
[1760026116305,0.1152,4316.7,4316.0,4.6072]
[1760026116742,0.1152,4316.7,4316.0,4.3739]
[1760026117328,0.1152,4316.7,4316.1,2.31685426]
[1760026117532,0.1152,4316.7,4316.0,3.917]
[1760026117721,0.1152,4316.7,4316.0,6.23395637]
[1760026118034,0.1152,4316.7,4316.1,8.981]
[1760026118235,0.1152,4316.7,4316.2,0.02316852]
[1760026118443,0.1152,4316.7,4316.3,2.31675756]
[1760026118616,0.1152,4316.7,4316.2,9.4379]
[1760026118816,0.005,4316.9,4316.3,2.77365874]
[1760026119018,0.005,4316.9,4316.4,2.31670199]
[1760026119418,0.005,4316.9,4316.7,2.31654181]
[1760026119765,0.005,4316.9,4316.8,8.91169606]
[1760026120042,0.005,4316.9,4316.8,8.88853076]
[1760026120616,0.005,4316.9,4316.8,6.572]
[1760026121341,0.005,4316.9,4316.8,8.88853076]
[1760026122713,0.005,4316.9,4316.8,10.52316281]
[1760026123048,0.005,4316.9,4316.8,10.63836281]
[1760026123421,0.005,4316.9,4316.8,12.55836281]
[1760026125627,0.005,4316.9,4316.8,5.98636281]
[1760026125933,0.005,4316.9,4316.8,24.60236281]
[1760026126943,0.005,4316.9,4316.8,5.98636281]
[1760026127147,0.005,4316.9,4316.8,24.60236281]
[1760026128021,0.005,4316.9,4316.8,4.06636281]
[1760026128220,0.005,4316.9,4316.8,11.86763076]
[1760026129319,0.005,4316.9,4316.8,2.88863076]
[1760026129557,0.007,4316.9,4316.8,11.86763076]
[1760026130356,0.007,4316.9,4316.8,2.88863076]
[1760026130659,0.007,4316.9,4316.8,21.50263076]
[1760026130853,0.007,4316.9,4316.8,23.75440121]
[1760026132363,1.424512,4317.0,4316.9,2.3164771]
[1760026132562,1.424512,4317.0,4316.9,4.6722771]
[1760026133366,0.002,4317.4,4317.3,2.31626247]
[1760026133668,0.002,4317.4,4317.3,10.82942509]
[1760026133962,0.002,4317.4,4317.3,12.60022196]
[1760026134150,2.28928576,4319.2,4318.4,2.3156401]
[1760026134348,2.28928576,4319.2,4318.5,11.31674578]
[1760026134553,2.28928576,4319.2,4318.6,2.43115565]
[1760026134785,2.28928576,4319.2,4318.7,6.57]
[1760026134951,2.31531888,4319.1,4318.7,6.57]
[1760026135151,2.3152449,4319.2,4318.7,6.57]
[1760026135355,0.1209351,4319.3,4318.7,6.57]
[1760026135738,2.31534549,4319.1,4318.7,6.57]
[1760026136360,2.31535189,4319.0,4318.7,6.57]
[1760026136557,2.31530386,4319.1,4318.7,6.57]
[1760026136761,2.0409351,4319.3,4317.7,0.4358]
[1760026136762,0.099,4319.0,4317.7,0.4358]
[1760026136962,0.6336,4318.6,4317.2,2.75210561]
[1760026137162,2.31551161,4318.7,4317.2,2.75210561]
[1760026137163,2.31595056,4317.9,4317.3,2.825]
[1760026137549,0.099,4318.5,4317.1,2.32135616]
[1760026137748,2.31551161,4318.7,4317.1,2.32135616]
[1760026137749,0.099,4318.4,4317.2,4.379]
[1760026138066,0.099,4318.4,4317.2,6.69527838]
[1760026138067,2.31588732,4318.0,4317.2,6.69527838]
[1760026138435,0.6336,4317.9,4317.1,0.005]
[1760026138642,2.31631613,4317.2,4317.1,0.005]
[1760026138848,2.31631613,4317.2,4317.1,0.019]
[1760026139065,2.41651613,4317.2,4317.1,2.512]
[1760026139266,2.31631613,4317.2,4317.1,2.512]
[1760026139467,2.31631613,4317.2,4317.1,0.005]
[1760026139648,2.31631613,4317.2,4317.1,6.227]
[1760026139844,2.41651613,4317.2,4317.1,0.005]
[1760026140068,2.41651613,4317.2,4317.1,0.102]
[1760026140274,2.41651613,4317.2,4317.1,0.005]
[1760026140575,3.05011613,4317.2,4317.1,0.005]
[1760026140776,4.97011613,4317.2,4317.1,0.005]
[1760026146488,1.92,4317.2,4317.1,0.005]
[1760026146862,4.23631613,4317.2,4317.1,0.005]
[1760026147661,4.33651613,4317.2,4317.1,0.005]
[1760026148798,4.33851613,4317.2,4317.1,0.005]
[1760026149098,4.97211613,4317.2,4317.1,0.005]
[1760026154116,4.23831613,4317.2,4317.1,0.005]
[1760026154492,4.33851613,4317.2,4317.1,0.005]
[1760026155306,4.23831613,4317.2,4317.1,0.005]
[1760026155980,2.41851613,4317.2,4317.1,0.005]
[1760026156376,0.1022,4317.2,4317.1,0.005]
[1760026156577,2.41851613,4317.2,4317.1,0.005]
[1760026157303,3.05211613,4317.2,4317.1,0.005]
[1760026157510,4.97211613,4317.2,4317.1,0.005]
[1760026158687,4.33851613,4317.2,4317.1,0.005]
[1760026163620,2.41851613,4317.2,4317.1,0.005]
[1760026165030,0.002,4317.2,4317.1,0.005]
[1760026165235,2.41851613,4317.2,4317.1,0.005]
[1760026166598,2.41851613,4317.2,4317.1,0.006]
[1760026167032,0.002,4317.2,4317.1,4.073]
[1760026167596,2.31831613,4317.2,4317.1,0.006]
[1760026168426,0.002,4317.2,4317.1,0.006]
[1760026168665,0.002,4317.2,4317.1,0.33827996]
[1760026168831,0.002,4317.2,4317.1,3.12394974]
[1760026169002,0.002,4317.2,4317.1,3.14711343]
[1760026169704,0.002,4317.2,4317.1,3.12394974]
[1760026170197,0.002,4317.2,4317.1,3.23914974]
[1760026171028,0.002,4317.2,4317.1,0.92277996]
[1760026171206,0.002,4317.2,4317.1,3.23914974]
[1760026172309,0.002,4317.2,4317.1,2.76984974]
[1760026172729,0.002,4317.2,4317.1,3.23914974]
[1760026173620,0.002,4317.2,4317.1,0.92277996]
[1760026173815,0.002,4317.2,4317.1,3.23914974]
[1760026174122,0.002,4317.2,4317.1,12.21814974]
[1760026175750,0.002,4317.2,4317.1,3.23914974]
[1760026176053,0.002,4317.2,4317.1,21.85314974]
[1760026176623,0.002,4317.2,4317.1,9.80814974]
[1760026176827,0.002,4317.2,4317.1,21.85114974]
[1760026177926,0.002,4317.2,4317.1,0.92277996]
[1760026178150,0.002,4317.2,4317.1,2.5292]
[1760026178336,0.002,4317.2,4317.1,0.1212]
[1760026178536,0.002,4317.2,4317.1,2.414]
[1760026178854,0.002,4317.2,4317.1,2.903]
[1760026179874,0.002,4317.2,4317.1,5.68866978]
[1760026180078,0.002,4317.2,4317.1,6.48928097]
[1760026182536,0.002,4317.2,4317.1,12.56828097]
[1760026185237,0.002,4317.2,4317.1,10.16028097]
[1760026185555,0.002,4317.2,4317.1,12.56828097]
[1760026186856,0.002,4317.2,4317.1,14.48828097]
[1760026188233,0.002,4317.2,4317.1,12.08028097]
[1760026188639,0.002,4317.2,4317.1,24.12228097]
[1760026189453,0.002,4317.2,4317.1,5.51228097]
[1760026189652,0.002,4317.2,4317.1,24.12128097]
[1760026190039,0.002,4317.2,4317.1,24.23648097]
[1760026190233,0.002,4317.2,4317.1,24.32916678]
[1760026191387,0.002,4317.2,4317.1,22.012797]
[1760026192475,0.002,4317.2,4317.1,3.403797]
[1760026192679,0.002,4317.2,4317.1,21.21118581]
[1760026193480,0.002,4317.2,4317.1,2.60318581]
[1760026193986,0.002,4317.2,4317.1,17.16618581]
[1760026194200,0.002,4317.2,4317.1,21.21118581]
[1760026194356,0.002,4317.2,4317.1,2.60318581]
[1760026194555,0.002,4317.2,4317.1,12.42261858]
[1760026194755,0.002,4317.2,4317.1,2.414]
[1760026195063,0.002,4317.2,4317.1,0.006]
[1760026195364,0.002,4317.2,4317.1,2.779]
[1760026196277,0.002,4317.2,4317.1,0.006]
[1760026196479,0.1067,4317.2,4317.1,0.019]
[1760026197562,0.002,4317.2,4317.1,0.019]
[1760026199615,0.002,4317.2,4317.1,0.4692]
[1760026200606,0.002,4317.2,4317.1,10.1032]
[1760026200898,0.002,4317.2,4317.1,13.03362]
[1760026203070,0.002,4317.2,4317.1,3.38662]
[1760026203271,0.002,4317.2,4317.1,20.9852]
[1760026204691,0.002,4317.2,4317.1,21.734]
[1760026205502,0.002,4317.2,4317.1,21.82667572]
[1760026206893,0.002,4317.2,4317.1,21.82467572]
[1760026207100,0.00068701,4317.2,4317.1,21.82467572]
[1760026207402,0.00068701,4317.2,4317.1,24.07644617]
[1760026208109,0.00068701,4317.2,4317.1,33.70944617]
[1760026208518,0.00068701,4317.2,4317.1,31.30144617]
[1760026208680,0.00068701,4317.2,4317.1,33.70944617]
[1760026209892,0.00068701,4317.2,4317.1,42.29895917]
[1760026210093,0.00068701,4317.2,4317.1,33.70944617]
[1760026210304,0.00068701,4317.2,4317.1,37.91076117]
[1760026210722,0.00068701,4317.2,4317.1,5.46944617]
[1760026210896,0.00068701,4317.2,4317.1,24.88967572]
[1760026211098,0.00068701,4317.2,4317.1,29.04667572]
[1760026211287,0.00068701,4317.2,4317.1,31.45467572]
[1760026211893,0.00068701,4317.2,4317.1,3.21767572]
[1760026212086,0.00068701,4317.2,4317.1,31.45467572]
[1760026212282,0.00068701,4317.2,4317.1,31.29844617]
[1760026212534,0.00068701,4317.2,4317.1,33.70644617]
[1760026213597,0.00068701,4317.2,4317.1,31.29844617]
[1760026213815,0.00068701,4317.2,4317.1,33.70644617]
[1760026215141,0.00068701,4317.2,4317.1,5.46944617]
[1760026215315,0.00068701,4317.2,4317.1,3.21767572]
[1760026215505,0.00068701,4317.2,4317.1,12.84867572]
[1760026215708,0.00068701,4317.2,4317.1,21.82067572]
[1760026217702,0.002,4317.7,4317.2,2.5536]
[1760026218000,0.002,4318.1,4317.4,2.5536]
[1760026218216,0.002,4318.1,4318.0,5.0758]
[1760026218434,0.002,4318.1,4318.0,11.6398]
[1760026218619,0.002,4318.1,4318.0,12.09]
[1760026218937,0.002,4318.1,4318.0,21.8136506]
[1760026221035,0.002,4318.1,4318.0,3.2116506]
[1760026221234,0.002,4318.1,4318.0,22.13481566]
[1760026221472,0.002,4318.1,4318.0,2.89921566]
[1760026221635,0.002,4318.1,4318.0,21.50121566]
[1760026221962,0.002,4318.1,4318.0,22.13481566]
[1760026222526,0.002,4318.1,4318.0,22.01961566]
[1760026222723,0.002,4318.1,4318.0,3.41761566]
[1760026223018,0.00058431,4318.1,4318.0,31.88820814]
[1760026224036,0.002,4318.6,4318.1,2.5536]
[1760026224359,0.002,4318.6,4318.5,14.8267]
[1760026224544,0.002,4318.6,4318.5,3.02929248]
[1760026224734,0.002,4318.6,4318.5,29.30249248]
[1760026225091,0.002,4318.6,4318.5,31.70949248]
[1760026225352,0.002,4318.6,4318.5,39.07657848]
[1760026225540,0.002,4318.6,4318.5,45.51810593]
[1760026226150,0.002,4318.6,4318.5,37.11306793]
[1760026226325,0.002,4318.6,4318.5,38.25243393]
[1760026226526,0.002,4319.0,4318.8,0.6336]
[1760026226750,0.002,4319.0,4318.9,16.70954004]
[1760026226951,0.002,4319.0,4318.9,19.30811173]
[1760026227336,0.002,4319.0,4318.9,40.73351925]
[1760026227536,0.002,4319.0,4318.9,40.51867925]
[1760026227858,0.002,4319.0,4318.9,40.30627173]
[1760026228458,0.002,4319.0,4318.9,12.17087407]
[1760026228642,0.002,4319.0,4318.9,45.14363059]
[1760026229027,0.002,4319.0,4318.9,45.38322307]
[1760026229444,0.005,4322.9,4319.8,0.6336]
[1760026229764,0.005,4322.9,4320.7,4.23443978]
[1760026229765,1.925,4322.9,4320.7,4.23443978]
[1760026229968,1.925,4322.9,4321.0,2.3142791]
[1760026230156,0.005,4322.9,4321.1,10.79622554]
[1760026230334,0.005,4322.9,4321.1,11.23142554]
[1760026230833,0.6336,4322.0,4319.7,0.23959248]
[1760026231036,0.4598,4321.1,4319.8,8.967]
[1760026231263,0.4598,4321.1,4319.9,2.628]
[1760026231468,0.4598,4321.7,4320.0,2.406]
[1760026231651,0.6356,4321.6,4320.4,2.31456439]
[1760026231958,0.6356,4321.6,4320.5,4.49553464]
[1760026232153,0.002,4321.6,4320.6,0.02314493]
[1760026232472,0.1152,4321.1,4320.7,6.561]
[1760026232645,0.1152,4321.1,4320.8,2.406]
[1760026233041,0.1152,4321.1,4320.4,0.1152]
[1760026233240,2.42946864,4321.1,4320.5,4.835]
[1760026233452,2.31432823,4321.0,4320.5,2.406]
[1760026233653,0.575,4320.9,4320.6,4.085]
[1760026233855,2.42953492,4320.9,4320.6,4.085]
[1760026234175,2.42953492,4320.9,4320.2,0.1152]
[1760026234176,0.4598,4320.8,4320.2,0.1152]
[1760026234488,0.002,4321.2,4319.1,0.005]
[1760026234489,0.1152,4320.5,4320.1,2.3147166]
[1760026234683,0.1152,4320.5,4320.3,0.1]
[1760026235473,0.1152,4320.5,4320.4,6.466]
[1760026235769,0.1152,4320.5,4320.0,2.31476822]
[1760026235967,0.1152,4320.5,4320.1,8.99014761]
[1760026236171,0.002,4321.2,4320.2,0.4352]
[1760026236473,0.002,4321.2,4320.4,0.1152]
[1760026236474,0.1152,4321.1,4320.4,0.1152]
[1760026236636,2.31423051,4321.1,4320.5,2.406]
[1760026236842,0.1152,4320.8,4320.6,2.406]
[1760026237260,0.1152,4320.8,4320.7,6.561]
[1760026237778,2.42958622,4320.8,4320.1,0.1152]
[1760026237975,0.1152,4320.8,4320.3,2.31464711]
[1760026238174,0.1152,4320.8,4320.4,0.4352]
[1760026238390,0.1152,4320.8,4320.2,8.967]
[1760026238998,2.42960517,4320.8,4320.2,8.967]
[1760026239145,0.1152,4320.8,4320.2,8.967]
[1760026239340,0.1152,4320.8,4320.3,2.31465407]
[1760026239562,0.1152,4320.8,4320.2,11.28170311]
[1760026239788,0.1152,4320.8,4320.2,8.967]
[1760026239984,0.1152,4320.8,4320.3,2.31461124]
[1760026241349,0.1152,4320.8,4320.4,8.967]
[1760026241859,0.1152,4320.8,4320.4,11.28159087]
[1760026242071,0.002,4321.2,4320.6,2.31444685]
[1760026242245,0.1152,4321.1,4320.5,0.4352]
[1760026242645,0.002,4321.2,4320.6,0.02314493]
[1760026242848,0.002,4321.2,4320.6,0.4352]
[1760026243050,0.002,4321.2,4320.4,8.967]
[1760026243051,0.002,4321.2,4320.7,8.87543855]
[1760026243255,0.002,4321.2,4320.8,6.561]
[1760026243475,0.002,4321.2,4320.8,8.967]
[1760026243886,0.002,4321.2,4320.9,2.31433266]
[1760026244087,0.002,4321.2,4321.1,2.31422554]
[1760026244477,0.002,4321.2,4321.1,2.74942554]
[1760026245165,0.002,4321.2,4321.1,2.31422554]
[1760026245366,0.002,4321.2,4321.1,2.76122554]
[1760026246188,0.002,4321.2,4321.1,2.31422554]
[1760026246683,0.002,4321.2,4321.1,2.76122554]
[1760026247376,0.002,4321.2,4321.1,9.32122554]
[1760026247699,0.002,4321.2,4321.1,2.76122554]
[1760026247901,0.002,4321.2,4321.1,2.406]
[1760026248067,0.002,4321.2,4321.1,10.86322554]
[1760026248267,0.002,4321.2,4321.1,11.31022554]
[1760026248968,0.002,4321.2,4321.1,10.86322554]
[1760026249192,0.002,4321.2,4321.1,12.67268118]
[1760026249774,0.002,4321.2,4321.1,4.12368118]
[1760026249963,0.002,4321.2,4321.1,11.72722554]
[1760026251202,0.002,4321.2,4321.1,13.20022554]
[1760026251358,0.002,4321.2,4321.1,13.64722554]
[1760026252681,0.002,4321.2,4321.1,13.76242554]
[1760026253281,0.002,4321.2,4321.1,16.82742554]
[1760026253478,0.002,4321.2,4321.1,23.38642554]
[1760026253714,0.002,4321.2,4321.1,25.63819599]
[1760026253918,0.002,4321.2,4321.1,25.52299599]
[1760026254710,0.002,4321.2,4321.1,15.89799599]
[1760026255266,0.002,4321.2,4321.1,1.92]
[1760026255466,0.002,4321.2,4321.1,4.23422554]
[1760026255672,0.002,4321.2,4320.6,2.31449175]
[1760026255899,0.002,4321.2,4319.1,0.005]
[1760026256100,0.4713,4321.1,4319.7,0.447]
[1760026256300,0.002,4321.2,4319.1,0.005]
[1760026256301,2.31454182,4320.6,4319.8,2.778]
[1760026256601,2.31460145,4320.4,4319.9,0.372]
[1760026256774,2.31438162,4320.9,4319.9,0.372]
[1760026256983,1.1049,4321.0,4320.6,0.001]
[1760026257176,2.78563266,4320.9,4320.7,2.469]
[1760026257598,2.31438622,4320.8,4320.7,2.469]
[1760026258325,2.75588622,4320.8,4320.7,2.469]
[1760026258607,0.002,4321.2,4320.7,7.66242776]
[1760026258777,0.002,4321.2,4320.8,0.49614386]
[1760026258982,0.002,4321.2,4320.8,2.81052401]
[1760026259178,0.002,4321.2,4320.9,2.31432505]
[1760026259398,0.002,4321.2,4321.0,0.02314279]
[1760026259601,0.002,4321.2,4321.1,6.559]
[1760026259918,0.002,4321.2,4321.1,9.34622554]
[1760026260267,0.002,4321.2,4321.1,10.5122813]
[1760026260817,0.002,4321.2,4320.7,2.3144204]
[1760026261020,0.002,4321.2,4321.1,2.31422554]
[1760026261305,0.002,4321.2,4321.1,0.02314225]
[1760026261509,0.002,4321.2,4321.1,2.33736779]
[1760026261724,0.002,4321.2,4321.1,2.81036779]
[1760026262078,0.002,4321.2,4321.1,2.78722554]
[1760026262406,0.002,4321.2,4321.1,4.40902326]
[1760026263023,0.002,4321.2,4321.1,6.32902326]
[1760026263319,0.002,4321.2,4321.1,6.30588101]
[1760026264020,0.002,4321.2,4321.1,6.42108101]
[1760026265132,0.002,4321.7,4321.3,0.6336]
[1760026265341,0.002,4321.7,4321.6,4.9596]
[1760026265489,0.002,4322.1,4321.7,1.92]
[1760026265798,0.002,4322.1,4322.0,2.42894363]
[1760026266000,0.002,4322.1,4322.0,10.93008106]
[1760026266207,0.002,4322.1,4322.0,11.37994363]
[1760026266526,0.002,4322.1,4322.0,12.74932306]
[1760026269830,0.002,4322.1,4322.0,0.473]
[1760026269987,0.002,4322.1,4322.0,11.27574363]
[1760026270191,0.002,4322.1,4322.0,13.66874363]
[1760026271323,0.002,4322.1,4322.0,4.70674363]
[1760026271527,0.002,4322.1,4322.0,13.66874363]
[1760026271935,0.002,4322.1,4322.0,15.92051408]
[1760026272332,0.002,4322.1,4322.0,6.95851408]
[1760026272497,0.002,4322.1,4322.0,13.66874363]
[1760026272698,0.002,4322.1,4322.0,13.19574363]
[1760026273443,0.002,4322.1,4322.0,13.66874363]
[1760026275110,0.002,4322.1,4322.0,13.19574363]
[1760026275460,0.002,4322.1,4322.0,13.66874363]
[1760026275637,0.002,4322.1,4322.0,15.92051408]
[1760026277748,0.002,4322.1,4322.0,25.54151408]
[1760026278551,0.002,4322.1,4322.0,4.23374363]
[1760026278730,0.002,4322.1,4322.0,13.19474363]
[1760026279642,0.002,4322.1,4322.0,4.70674363]
[1760026279800,0.002,4322.1,4322.0,13.78294363]
[1760026280003,0.002,4322.1,4322.0,4.34894363]
[1760026280503,0.002,4322.1,4322.0,13.78294363]
[1760026280704,0.002,4322.1,4322.0,8.98494363]
[1760026280931,0.002,4322.1,4322.0,2.42894363]
[1760026281136,0.002,4322.1,4322.0,11.38994363]
[1760026281710,0.002,4322.1,4322.0,0.1152]
[1760026282049,0.002,4322.1,4322.0,5.38894363]
[1760026283303,0.002,4322.1,4322.0,6.1593229]
[1760026283547,0.002,4322.1,4322.0,6.6323229]
[1760026283750,0.002,4322.1,4322.0,5.38894363]
[1760026284055,0.002,4322.1,4322.0,5.86194363]
[1760026284632,0.002,4322.1,4322.0,2.90194363]
[1760026284805,0.002,4322.1,4322.0,8.81694363]
[1760026285010,0.002,4322.1,4322.0,11.22194363]
[1760026285751,0.002,4322.1,4322.0,13.47371408]
[1760026287453,0.002,4322.1,4322.0,5.15371408]
[1760026287647,0.002,4322.1,4322.0,21.48494363]
[1760026289852,0.002,4322.1,4322.0,9.45794363]
[1760026290057,0.002,4322.1,4322.0,21.48494363]
[1760026290629,0.002,4322.1,4322.0,2.90194363]
[1760026290858,0.002,4322.1,4322.0,21.48494363]
[1760026291058,0.002,4322.1,4322.0,23.73671408]
[1760026291843,0.002,4322.1,4322.0,5.15371408]
[1760026292043,0.002,4322.1,4322.0,21.48494363]
[1760026294170,0.002,4322.1,4322.0,2.90194363]
[1760026294775,0.002,4322.1,4322.0,11.86294363]
[1760026298479,0.002,4322.1,4322.0,11.27374363]
[1760026299647,0.002,4322.1,4322.0,11.72884363]
[1760026300473,0.002,4322.1,4322.0,13.32521107]
[1760026304387,0.002,4322.1,4322.0,22.94721107]
[1760026306190,0.002,4322.1,4322.0,24.86721107]
[1760026308496,0.002,4322.1,4322.0,24.98241107]
[1760026309012,0.002,4322.1,4322.0,6.40041107]
[1760026309310,0.002,4322.1,4322.0,4.80404363]
[1760026309699,0.002,4322.1,4322.0,23.38504363]
[1760026310007,0.002,4322.1,4322.0,22.92994363]
[1760026310312,0.002,4322.1,4322.0,13.77484363]
[1760026311707,0.002,4322.1,4322.0,22.92994363]
[1760026311911,0.002,4322.1,4322.0,0.1152]
[1760026312085,0.4396,4322.1,4322.0,2.68]
[1760026312288,0.002,4322.1,4322.0,2.68]
[1760026312717,0.002,4322.1,4321.8,0.001]
[1760026312718,2.31375337,4322.0,4321.8,0.001]
[1760026312900,2.31569596,4322.1,4321.9,8.96]
[1760026313079,0.002,4322.1,4321.9,8.96]
[1760026314817,2.31570124,4322.1,4321.9,8.96]
[1760026315005,0.002,4322.1,4321.9,8.96]
[1760026315746,0.1152,4321.9,4321.8,0.001]
[1760026315925,0.1152,4321.9,4321.8,8.961]
[1760026317056,0.002,4322.1,4322.0,2.31374363]
[1760026317349,0.002,4322.1,4322.0,9.00708106]
[1760026317549,0.002,4322.1,4322.0,9.45774363]
[1760026319392,0.002,4322.1,4322.0,11.37774363]
[1760026322356,0.002,4322.1,4322.0,16.84974363]
[1760026322551,0.002,4322.1,4322.0,25.44321099]
[1760026323256,0.002,4322.1,4322.0,6.86121099]
[1760026323457,0.002,4322.1,4322.0,23.40474363]
[1760026326982,0.002,4322.1,4322.0,23.40274363]
[1760026328081,0.002,4322.1,4322.0,11.37674363]
[1760026328589,0.002,4322.1,4322.0,23.40274363]
[1760026330110,0.002,4322.1,4322.0,4.82274363]
[1760026330346,0.002,4322.1,4322.0,24.23851065]
[1760026330610,0.002,4322.1,4322.0,5.65851065]
[1760026330791,0.002,4322.1,4322.0,24.23851065]
[1760026330963,0.002,4322.1,4322.0,5.18471065]
[1760026331288,0.002,4322.1,4322.0,24.23851065]
[1760026335411,0.002,4322.1,4322.0,24.33108577]
[1760026335970,0.002,4322.1,4322.0,24.23851065]
[1760026337003,0.002,4322.1,4322.0,5.65851065]
[1760026337170,0.002,4322.1,4322.0,24.23851065]
[1760026339317,0.002,4322.1,4322.0,24.23526065]
[1760026339489,0.002,4322.1,4322.0,5.65526065]
[1760026339690,0.002,4322.1,4322.0,24.23426065]
[1760026340709,0.002,4322.1,4322.0,2.89949363]
[1760026340914,0.002,4322.1,4321.8,2.40743333]
[1760026340915,0.002,4322.1,4321.8,2.31484758]
[1760026341103,0.002,4322.1,4322.0,2.31374363]
[1760026341488,0.002,4322.1,4321.8,2.78864758]
[1760026341489,0.002,4322.1,4321.8,0.001]
[1760026342019,0.002,4322.1,4321.9,8.958]